Cogmind - Beta 16.1 @@@ ROGUE MODE // 2026.03.14 @ 20:56:25 Player: Mercey Result: Self-destructed Performance ------------- Evolutions (1) 500 Regions Visited (3) 600 Robots Destroyed (36) 180 Value Destroyed (793) 793 Prototype IDs (1) 20 Alien Tech Used (0) 0 Bonus (0) 0 TOTAL SCORE: 2093 Bonus ------- None Cogmind --------- Core Integrity 312/400 Matter 279/300 Energy 167/250 System Corruption 0% Temperature Cool (0) Movement Walking (175) Ox1 Location -9/Storage Parts ------- > --- POWER (1) -------- Ion Engine > --- PROPULSION (3) --- Aluminum Leg > --- UTILITY (2) ------ Small Storage Unit > --- WEAPON (3) ------- Mace > --- INVENTORY (8) ---- Light Ion Engine Aluminum Leg High-capacity Storage Unit Sensor Array Hacking Suite Grenade Launcher Peak State ------------ > --- POWER ------------ Light Ion Engine > --- PROPULSION ------- Aluminum Leg Aluminum Leg Improved Aluminum Leg > --- UTILITY ---------- Small Storage Unit Seismic Detector > --- WEAPON ----------- Improved Medium Laser Heavy Assault Rifle Mace > --- INVENTORY -------- Ion Engine Light Ion Engine Aluminum Leg Aluminum Leg High-capacity Storage Unit Sensor Array Hacking Suite Grenade Launcher [Rating: 15] Favorites ----------- Power Ion Engine Engine Ion Engine Propulsion Aluminum Leg Treads Light Treads Leg Aluminum Leg Utility Small Storage Unit Device Seismic Detector Storage Small Storage Unit Weapon Light Assault Rifle Energy Gun Improved Medium Laser Ballistic Gun Light Assault Rifle Ballistic Cannon Light Cannon Launcher Grenade Launcher Impact Weapon Mace Build | -11 -10 -9 -9 ------- Run | Yrd Mat Mat Sto Slots Evolved 2 | . . 2 . Power . | . . . . Propulsion 1 | . . 1 . Utility . | . . . . Weapon 1 | . . 1 . Parts Attached 20 | 8 6 4 2 Power 2 | 1 1 . . Engine 2 | 1 1 . . Core . | . . . . Reactor . | . . . . Propulsion 7 | 3 1 2 1 Treads 1 | 1 . . . Leg 6 | 2 1 2 1 Wheel . | . . . . Hover . | . . . . Flight . | . . . . Utility 3 | 2 1 . . Device 2 | 1 1 . . Storage 1 | 1 . . . Processor . | . . . . Hackware . | . . . . Protection . | . . . . Artifact . | . . . . Weapon 8 | 2 3 2 1 Energy Gun 1 | . . 1 . Energy Cannon . | . . . . Ballistic Gun 4 | 2 1 . 1 Ballistic Cannon 1 | . 1 . . Launcher 1 | . 1 . . Special Weapon . | . . . . Impact Weapon 1 | . . 1 . Slashing Weapon . | . . . . Piercing Weapon . | . . . . Special Melee Weapon . | . . . . Unidentified Prototypes 1 | . . 1 . Parts Lost 10 | . 3 . 7 Power 1 | . . . 1 Propulsion 3 | . . . 3 Utility 2 | . 1 . 1 Weapon 4 | . 2 . 2 Highest Loss Streak 7 | . 1 . 7 To Critical Strikes . | . . . . Average Backups 6 | 5 6 7 7 Power 1 | . 1 2 1 Propulsion 1 | 3 1 1 1 Utility 2 | . 2 3 3 Weapon 1 | . 1 . 1 Tool/Special . | . . . . Unused Backups 7 | . 3 . 4 Power 1 | . . . 1 Propulsion 3 | . 3 . . Utility 3 | . . . 3 Weapon . | . . . . Tool/Special . | . . . . Average Slot Usage (%) 98 | . 98 99 96 Engine 12 | . 14 11 11 Leg 29 | . 28 33 33 Device 11 | . 12 11 10 Storage 12 | . 14 11 11 Energy Gun 3 | . . 9 8 Ballistic Gun 14 | . 16 11 11 Ballistic Cannon 5 | . 8 . . Launcher 1 | . 2 2 . Impact Weapon 4 | . . 10 11 Peak Build Rating 15 | 7 8 14 15 Average Rating 8 | 5 6 12 13 On Entrance 7 | . 7 8 14 Avg Prop Armor Cover (%) 9 | 9 . . . Naked Turns . | . . . . Heaviest Build 17 | 13 16 16 17 Greatest Support 33 | 20 20 33 33 Greatest Overweight (x) 3 | 3 . . . Average Overweight (x) . | 1 . . . Largest Inventory Capacity 8 | 8 8 8 8 Average Capacity 7 | 7 8 8 8 Most Carried 8 | 7 8 8 8 Average Carried 6 | 5 6 7 7 Final Capacity 8 | 8 8 8 8 Final Carried 8 | 7 8 8 6 Class Distribution -------------------- 80% | Mutant 19% | Scavenger-Mutant Dominant Class ---------------- Mutant | -10/Materials Mutant | -9/Materials Scavenger-Mutant | -9/Storage Resources | -11 -10 -9 -9 ----------- Run | Yrd Mat Mat Sto Matter Collected 773 | 279 406 35 53 Remotely . | . . . . Salvage Created 921 | 96 574 63 188 Parts 77 | 12 47 3 15 Haulers Intercepted 1 | . 1 . . Recyclers Shooed 1 | 1 . . . Parts Field Recycled . | . . . . Retrieved Matter . | . . . . Parts Self-Destructed . | . . . . Prevented . | . . . . Parts Restored . | . . . . Kills | -11 -10 -9 -9 ------- Run | Yrd Mat Mat Sto Combat Hostiles Destroyed 23 | . 16 1 6 Melee 2 | . . . 2 Guns 9 | . 5 1 3 Cannons 9 | . 9 . . AOE 2 | . 2 . . Classes Destroyed 10 | 2 6 . 2 Worker 4 | 2 2 . . Builder 2 | . 2 . . Tunneler 3 | 3 . . . Hauler 1 | . 1 . . Operator 1 | . 1 . . Watcher 2 | . 1 1 . Swarmer 6 | . 3 . 3 Grunt 15 | . 13 1 1 Duelist 1 | . . . 1 Sentry 1 | . . . 1 Best Kill Streak 5 | 2 5 1 5 Combat Bots Only 5 | . 5 1 5 Max Kills in Single Turn 2 | 1 2 1 2 Gunslinging 1 | . . . 1 Exploded 1 | . 1 . . Melee 1 | . . . 1 Uniques/NPCs Destroyed . | . . . . Combat | -11 -10 -9 -9 -------- Run | Yrd Mat Mat Sto Hostile Shots Fired 142 | . 79 . 63 Missed 30 | . 19 . 11 Hits 112 | . 60 . 52 Melee 5 | . . . 5 Projectile 107 | . 60 . 47 Damage Taken 1300 | . 636 . 664 Core 220 | . 132 . 88 Absorbed by Shields . | . . . . Core Remaining (%) 73 | 100 47 . . Volleys Fired 97 | 17 70 2 8 Largest 2 | 2 2 2 2 Hottest 79 | 40 50 76 79 Shots Fired 179 | 34 125 4 16 Gun 132 | 34 78 4 16 Cannon 40 | . 40 . . Launcher 7 | . 7 . . Special . | . . . . Kinetic 162 | 34 118 2 8 Thermal 10 | . . 2 8 Explosive 7 | . 7 . . Electromagnetic . | . . . . Robot Hit Streak 12 | 5 12 8 8 Robot Miss Streak 4 | 2 4 1 2 Penetration Max . | . . . . Secondary Targets 2 | . 1 . 1 Max Gunslinging Chain 1 | . 1 . 1 Shots Hit Robots 139 | 23 92 2 22 Core Hits 59 | 12 38 2 7 Critical Kills . | . . . . Critical Parts Destroyed . | . . . . Critical Strikes 1 | . 1 . . Blast 1 | . 1 . . Melee Attacks 14 | . . . 14 Impact 14 | . . . 14 Slashing . | . . . . Piercing . | . . . . Sneak Attacks . | . . . . Combat Hostiles . | . . . . Follow-up Attacks . | . . . . Damage Inflicted 2056 | 179 1377 31 469 Guns 935 | 179 554 31 171 Cannons 534 | . 534 . . Explosions 289 | . 289 . . Melee 296 | . . . 296 Ramming 2 | . . . 2 Kinetic 1369 | 179 1088 14 88 Thermal 100 | . . 17 83 Explosive 289 | . 289 . . Electromagnetic . | . . . . Impact 296 | . . . 296 Slashing . | . . . . Piercing . | . . . . Highest Corruption 1 | . 1 . . Average Corruption 1 | . 1 . . Corruption Purged . | . . . . Corruption Blocked . | . . . . Effects 2 | . 2 . . Data Loss (minor) 1 | . 1 . . Weapon Failures 1 | . 1 . . Overload Shots . | . . . . Overflow Damage 16 | . . . 16 Projectiles . | . . . . Explosions . | . . . . Melee 16 | . . . 16 Knockbacks 4 | . 4 . . Impact . | . . . . Kinetic 4 | . 4 . . Secondary . | . . . . Self-Inflicted Damage . | . . . . Shots . | . . . . Rammed . | . . . . Targets Rammed 1 | . . . 1 Kicked 1 | . . . 1 Crushed . | . . . . Highest Temperature 45 | . 45 6 36 Average Temperature 14 | . 15 4 14 Received Heat Transfer 435 | . 300 . 135 Siege Activations . | . . . . Martial Activations . | . . . . Shielding Activations . | . . . . Robots Disrupted . | . . . . Combat Hostiles . | . . . . Robots Corrupted 1 | . . . 1 Combat Hostiles 1 | . . . 1 Parts Fried 1 | . . . 1 Impact Corruptions 1 | . . . 1 Robots Melted . | . . . . Combat Hostiles . | . . . . Parts Melted . | . . . . Heat Transferred 222 | . . 37 185 Parts Sabotaged . | . . . . Parts Stolen . | . . . . Parts Stripped . | . . . . Power Chain Reactions . | . . . . Alert | -11 -10 -9 -9 ------- Run | Yrd Mat Mat Sto Maximum Alert Level 1 | . 1 . . Low Security (%) 91 | 100 83 100 100 Level 1 8 | . 16 . . Level 2 . | . . . . Level 3 . | . . . . Level 4 . | . . . . Level 5 . | . . . . High Security . | . . . . Max Security . | . . . . Peak Influence 292 | 10 292 116 103 Initial 116 | . . 116 22 Average 65 | 1 89 88 41 Influence Increases 703 | 25 490 37 151 Destroy 0b10 Robot/C 460 | . 320 20 120 Destroy 0b10 Robot/NC 65 | 25 35 5 . Destroy Leader 116 | . 74 12 30 Successful Hack 2 | . 2 . . Disable Machine 30 | . 30 . . Destroy Structure 30 | . 29 . 1 Influence Decreases 660 | 25 214 260 161 Entered New Map 191 | . . 160 31 Time Decay 369 | 25 184 100 60 Lost Part 100 | . 30 . 70 Squads Dispatched 6 | . 4 1 1 Investigation 5 | . 4 1 . Extermination . | . . . . Reinforcement 1 | . . . 1 Assault . | . . . . Garrison . | . . . . Intercept . | . . . . Searches Triggered . | . . . . Construction Impeded . | . . . . Haulers Reinforced . | . . . . Active Scanning Responses . | . . . . Cargo Convoy Interrupts . | . . . . Stealth | -11 -10 -9 -9 --------- Run | Yrd Mat Mat Sto Distress Signals 1 | . . . 1 Communications Jammed . | . . . . Distress Signals . | . . . . Times Spotted 36 | . 19 4 13 Peak Tracking Total 8 | . 3 3 8 Tactical Retreats . | . . . . Traps | -11 -10 -9 -9 ------- Run | Yrd Mat Mat Sto Traps Triggered 2 | . 2 . . Indirectly . | . . . . Trap Hack Attempts . | . . . . Triggered . | . . . . Disarmed . | . . . . Reprogrammed . | . . . . Reused . | . . . . Traps Extracted . | . . . . Installed . | . . . . Triggered . | . . . . Machines | -11 -10 -9 -9 ---------- Run | Yrd Mat Mat Sto Machines Disabled 2 | . 2 . . Max in Single Turn 1 | . 1 . . Machines Repaired . | . . . . Machines Dismantled . | . . . . Machines Sabotaged . | . . . . Overloaded Fab Kills . | . . . . Hacking | -11 -10 -9 -9 --------- Run | Yrd Mat Mat Sto Machines Accessed 9 | . 4 4 1 Terminals 6 | . 2 3 1 Fabricators . | . . . . Repair Stations 1 | . 1 . . Recycling Units 1 | . 1 . . Scanalyzers 1 | . . 1 . Garrison Access . | . . . . Total Hacks 21 | . 10 9 2 Successful 10 | . 4 6 . Failed 10 | . 5 3 2 Catastrophic 1 | . 1 . . Database Lockouts 1 | . 1 . . Manual 7 | . 3 . 4 Terminals 14 | . 6 6 2 Fabricators . | . . . . Repair Stations 2 | . 2 . . Recycling Units 2 | . 2 . . Scanalyzers 3 | . . 3 . Garrison Access . | . . . . Terminal Hacks 6 | . 3 3 . Record 5 | . 2 3 . Alert Level 1 | . 1 . . Fabricator Hacks . | . . . . Repair Station Hacks . | . . . . Recycling Unit Hacks 1 | . 1 . . Report Inventory 1 | . 1 . . Scanalyzer 3 | . . 3 . Insert Component 1 | . . 1 . Analyze 1 | . . 1 . Retrieve Study 1 | . . 1 . Garrison Access Hacks . | . . . . Unauthorized Hacks . | . . . . Terminals . | . . . . Fabricators . | . . . . Repair Stations . | . . . . Recycling Units . | . . . . Scanalyzers . | . . . . Garrison Access . | . . . . Data Cores Recovered 1 | . 1 . . Used . | . . . . Hacking Detections 8 | . 3 4 1 Full Trace Events 3 | . 2 1 . Feedback Events 1 | . 1 . . Corruption 1 | . 1 . . Feedback Blocked . | . . . . Robot Schematics Acquired . | . . . . Robots Built . | . . . . Authchips . | . . . . Time . | . . . . Total Robot Build Rating . | . . . . Part Schematics Acquired 1 | . . 1 . Parts Built . | . . . . Authchips . | . . . . Time . | . . . . Total Part Build Rating . | . . . . Part Studies Acquired 1 | . . 1 . Parts Repaired . | . . . . Time . | . . . . Parts Recycled . | . . . . Recycled Matter . | . . . . Retrieved Matter . | . . . . Retrieved Components . | . . . . Parts Scanalyzed 1 | . . 1 . Part Schematics Acquired 1 | . . 1 . Parts Damaged . | . . . . Bothacking | -11 -10 -9 -9 ------------ Run | Yrd Mat Mat Sto Used RIF Installer . | . . . . Robots Hacked . | . . . . Non-combat . | . . . . Combat . | . . . . Robot Hacks Applied . | . . . . Relay Couplers Released . | . . . . Fabnet Peak Effective % . | . . . . Robots Rewired . | . . . . Allies Hacked . | . . . . Hacks Repelled . | . . . . Allies | -11 -10 -9 -9 -------- Run | Yrd Mat Mat Sto Total Allies . | . . . . Largest Group . | . . . . Highest-Rated Group . | . . . . Highest-Rated Ally . | . . . . Total Orders . | . . . . Ally Attacks . | . . . . Total Damage . | . . . . Kills . | . . . . Allies Corrupted . | . . . . Allies Melted . | . . . . Intel | -11 -10 -9 -9 ------- Run | Yrd Mat Mat Sto Active Infowar (turns) 950 | 117 501 205 127 Seismic 950 | 117 501 205 127 Robot Analysis Total . | . . . . Derelict Logs Recovered . | . . . . Drone Launches . | . . . . Drone Recoveries . | . . . . Exploration | -11 -10 -9 -9 ------------- Run | Yrd Mat Mat Sto Turns Passed 1146 | 236 568 205 137 Spaces Moved 602 | 94 284 167 57 Core 16 | 16 . . . Treads 6 | 6 . . . Legs 580 | 72 284 167 57 Wheels . | . . . . Hover . | . . . . Flight . | . . . . Fastest Speed 50 | 50 120 105 110 Average Speed 127 | 185 120 113 110 Slowest Speed 200 | 200 120 120 110 Overloaded Moves . | . . . . Propulsion Burnouts . | . . . . Robots Hopped . | . . . . Potential Cave-ins . | . . . . Cave-ins Triggered . | . . . . Exploration Rate (%) 20 | 6 43 16 17 Regions Visited 3 Branch Regions 1 Pre-discovered Areas . | . . . . Known Exits Taken . | . . . . Unknown Exits Taken 3 | 1 1 1 . Scrap Searched . | . . . . Spaces Dug 1 | . . . 1 Terrain Destroyed 30 | . 29 . 1 Melee 1 | . . . 1 Projectile . | . . . . AOE 29 | . 29 . . Terrain Rammed . | . . . . Walls Destroyed . | . . . . Machines Disabled . | . . . . Actions | -11 -10 -9 -9 --------- Run | Yrd Mat Mat Sto Total 791 | 125 396 179 91 Wait 36 | . 26 3 7 Move 599 | 93 283 166 57 Hop . | . . . . Pick Up 13 | 6 6 1 . Fast Attach 9 | 8 1 . . Attach 8 | . 3 3 2 Detach 2 | 1 . 1 . Swap 5 | . 2 2 1 Drop 7 | . 5 1 1 Fire 97 | 17 70 2 8 Melee 14 | . . . 14 Ram . | . . . . Kick 1 | . . . 1 Crush . | . . . . Escape Stasis . | . . . . Rewire . | . . . . Trap . | . . . . Miscellaneous . | . . . . Route ------- -11/Scrapyard -10/Materials -9/Materials (discovered 2 exits: [*Min] / *Sto) -9/Storage History --------- Turn | Location | Event 27 | -11/Scrapyard | Discovered new exit (range 16) 237 | -11/Scrapyard | Entered Materials 258 | -10/Materials | Central database locked down 313 | -10/Materials | Build established: Mutant 761 | -10/Materials | Core integrity fell below 50% 792 | -10/Materials | Discovered new exit (range 11) 805 | -10/Materials | Entered another Materials area 805 | -9/Materials | Evolved 2 slots: Propulsion x1, Weapon x1 923 | -9/Materials | Discovered new exit (range 14) 933 | -9/Materials | Discovered new exit (range 7) 1010 | -9/Materials | Entered Storage 1147 | -9/Storage | Self-destructed Last Messages --------------- 01056_ Kicked M-13 Machinist. 01058_ Connecting with Terminal... 01058_ Current location identified: Storage 01097_ S-10 Pest destroyed. 01097_ Switching to secondary target: S-10 Pest. 01097_ S-10 Pest destroyed. 01115_ Imp. Medium Laser destroyed. 01121_ Destroyed Melee Analysis Suite. 01121_ L-31 Rogue system corrupted by crushing effect. 01122_ L-31 Rogue system terminally corrupted. 01122_ Katana fried. 01129_ G-34 Mercenary destroyed. 01133_ R-06 Scavenger collects Aluminum Leg+. 01134_ Lgt. Ion Engine destroyed. 01137_ Seismic Detector destroyed. 01138_ Aluminum Leg+ destroyed. 01141_ Imp. Aluminum Leg destroyed. 01141_ Hvy. Assault Rifle destroyed. 01145_ R-06 Scavenger collects Aluminum Leg+. 01146_ Aluminum Leg+ destroyed. Map ----- +----------------------------------------------------+ | "R """ #?????????????????????????????????????? | | """ ####????+##???????????????????????????? | | ### !##T#### # ???????????????????? | | ??# % =[+ " / ???????????????????? | | ??# "Y"*#### ## # ???????????????????? | | ??# """ #??# #?? ##???????????????????????????? | | ??##########??# #?? ?????????????????????????????? | | ??????????????# #?# #????????????????????????????? | | ??????????????# #?# #????????????????????????????? | | ??????????????# #?# #????????????????????????????? | | ??????????????# #?# #????????????????????????????? | | ???????????####+### #????????????????????????????? | | ???????????# # +????????????????????????????? | | ???????????# # #????????????????????????????? | | ???????????# + #???????????????? #??????????? | | ???????????# # #??????????????? #??????????? | | ???????????# # ############### #??????????? | | ???????????# + #??????????? | | ???????????######## ##### = +??????????? | | ??????????????????# #???# =%* #??????????? | | ?????????????????##+#####+###+##### #??????????? | | ?????????????????# a # %[ #???????????????? | | ?????????????????# """ """g#""" #???????????????? | | ?????????????????# """ """g#""" #???????????????? | | ?????????????????# """ """Y#""" #???????????????? | | ????????????# + s @=#""" #???????????????? | | ?????????????????# gr!|#""" #???????????????? | | ?????????????????# # ? #???????????????? | | ?????????????????# #??? #???????????????? | | ?????????????????####+######???? #???????????????? | | ?????????????????????????????????????????????????? | | ?????????????????????????????????????????????????? | | ?????????????????????????????????????????????????? | | ?????????????????????????????????????????????????? | | ?????????????????????????????????????????????????? | | ?????????????????????????????????????????????????? | | ?????????????????????????????????????????????????? | | ?????????????????????????????????????????????????? | | ?????????????????????????????????????????????????? | | ?????????????????????????????????????????????????? | | ?????????????????????????????????????????????????? | | ?????????????????????????????????????????????????? | | ?????????????????????????????????????????????????? | | ?????????????????????????????????????????????????? | | ?????????????????????????????????????????????????? | | ?????????????????????????????????????????????????? | | ?????????????????????????????????????????????????? | | ?????????????????????????????????????????????????? | | ?????????????????????????????????????????????????? | | ?????????????????????????????????????????????????? | +----------------------------------------------------+ Best States ------------- Heat Dissipation 28 Energy Generation 10 Energy Capacity 250 Matter Stores 300 Matter Capacity 300 Sight Range 16 Terrain Scan Density 10 Evasion (%) 55 Recoil Reduction 1 Item Schematics ----------------- Aluminum Leg | -9/Materials | Scanalyzed Robot Schematics ------------------ None Fabricated ------------ Nothing Repaired ---------- Nothing Studied --------- Aluminum Leg | -9/Materials | Hacked Alien Tech Used ----------------- None Achievements -------------- Item+ Challenges ------------ None Game ------ Seed TransportPlatingWell Manual? 0 Play Time 00:17:01 Cumulative 46.4 hours Start 2026.03.14 @ 20:37:39 End 2026.03.14 @ 20:56:25 Sessions 1 Manual Loads 0 Difficulty Rogue Special Mode None Game No. 72 Rogue 72 Adventurer 0 Explorer 0 Win Type - Total 0 Types 0/0/0/0/0/0/0/0/0/0 Lore% 14 Gallery% 31 Achievement% 20 Wizard Run 0 Options --------- Layout 0 ASCII 0 Keyboard 1 Movement Numpad Keybinds 1 Fullscreen 1 Font 36/Smallcaps Map View 76x50 Zoom Use 0% Tactical HUD 1 Map Filters NONE Filters NONE Steam 1 RUN: 3a35e673-ee74-4794-89df-e6015652b641